lending/lending_fUSD_20250819
["ID","MTS","AMOUNT","RATE_DAILY","PERIOD"]
[380138875,1755570444065,-9722.64320948,9.94e-05,2]
[380138876,1755570453986,-4254.18708173,9.94e-05,2]
[380138877,1755570454013,-151.0,9.94e-05,2]
[380138878,1755570454043,-151.0,9.94e-05,2]
[380138879,1755570454071,-157.89058305,9.942e-05,2]
[380138880,1755570454099,-285.92233522,9.942e-05,2]
[380138888,1755570566214,638.3,9.243e-05,2]
[380138891,1755570589595,315.78894833,0.00022,120]
[380138892,1755570615049,433.0,9.5e-05,2]
[380139021,1755570633862,-196.76767093,9.847e-05,2]
[380139023,1755570633872,-196.16686768,9.847e-05,2]
[380139025,1755570633881,-175.6882028,9.847e-05,2]
[380139027,1755570633892,-1200.0,9.847e-05,2]
[380139029,1755570633902,-2037.3686,9.848e-05,2]
[380139031,1755570633911,-3141.24226676,9.848e-05,2]
[380139135,1755570638407,-1858.75773324,9.848e-05,2]
[380139136,1755570638417,-1267.0,9.863e-05,2]
[380139137,1755570638426,-500.0,9.923e-05,2]
[380139138,1755570638436,-501.92912602,9.923e-05,2]
[380139139,1755570638445,-500.0,9.923e-05,2]
[380139140,1755570638461,-500.0,9.923e-05,2]
[380139141,1755570638470,-500.0,9.923e-05,2]
[380139142,1755570638480,-150.0,9.927e-05,2]
[380139143,1755570638490,-675.38296769,9.928e-05,2]
[380139144,1755570638622,-1191.9,9.928e-05,2]
[380139145,1755570638677,-634.1324645,9.928e-05,2]
[380139150,1755570644212,-961.99,9.928e-05,2]
[380139199,1755570658278,151.96,9.228e-05,2]
[380139200,1755570658359,151.96,9.274e-05,2]
[380139201,1755570658510,151.96,9.32e-05,2]
[380139203,1755570723160,151.85,7.37e-05,2]
[380139204,1755570846464,1000.0,0.000221,120]
[380139205,1755570860645,828.0,0.000221,120]
[380139207,1755571000668,285.27,9.03e-05,2]
[380139208,1755571060774,169.71,9.293e-05,2]
[380139209,1755571310936,250.0,9.024e-05,2]
[380139210,1755571317812,190.12,9.024e-05,2]
[380139211,1755571431187,1000.0,6e-07,120]
[380139212,1755571453498,1000.0,6e-07,120]
[380139214,1755571460341,1000.0,6e-07,120]
[380139216,1755571468352,1000.0,6e-07,120]
[380139217,1755571477140,1000.0,6e-07,120]
[380139218,1755571483905,1000.0,6e-07,120]
[380139219,1755571490487,1000.0,6e-07,120]
[380139220,1755571497824,1000.0,6e-07,120]
[380139221,1755571504184,1000.0,6e-07,120]
[380139222,1755571510353,1000.0,6e-07,120]
[380139223,1755571517911,1000.0,6e-07,120]
[380139224,1755571525122,1000.0,6e-07,120]
[380139225,1755571532730,1000.0,6e-07,120]
[380139226,1755571538441,1000.0,6e-07,120]
[380139227,1755571539749,200.0,0.000221,120]
[380139228,1755571540699,1000.0,8.994e-05,2]
[380139229,1755571547202,175.0,6e-07,120]
[380139232,1755571601424,9249.38081146,9e-05,2]
[380139243,1755571641559,725.98,8.96e-05,2]
[380139252,1755571682974,192.45,8.953e-05,2]
[380139257,1755571806135,856.0,8.942e-05,2]
[380139258,1755571825879,173.80898851,0.00012643,11]
[380139264,1755571831534,-3400.0,9.8e-05,3]
[380139265,1755571831544,-205.15820154,9.829e-05,2]
[380139266,1755571831554,-1200.0,9.829e-05,2]
[380139267,1755571831564,-198.68998532,9.829e-05,2]
[380139268,1755571831573,-9682.95808699,9.83e-05,2]
[380139269,1755571831583,-170.0,9.836e-05,7]
[380139270,1755571831592,-150.8986,9.848e-05,2]
[380139271,1755571831602,-413.2828,9.848e-05,2]
[380139272,1755571831611,-5000.0,9.848e-05,2]
[380139273,1755571831621,-300.0,9.849e-05,2]
[380139274,1755571831630,-150.0,9.849e-05,2]
[380139275,1755571831639,-250.0,9.849e-05,2]
[380139276,1755571831649,-150.0,9.888e-05,2]
[380139277,1755571831658,-150.0,9.888e-05,2]
[380139278,1755571831668,-150.0,9.888e-05,2]
[380139279,1755571831678,-150.00000001,9.888e-05,2]
[380139280,1755571831687,-150.0,9.888e-05,2]
[380139281,1755571831696,-151.90274505,9.888e-05,2]
[380139282,1755571831706,-153.91929411,9.888e-05,2]
[380139283,1755571831716,-150.89823324,9.888e-05,2]
[380139284,1755571831725,-152.37188527,9.888e-05,2]
[380139285,1755571831735,-151.50052231,9.888e-05,2]
[380139286,1755571831745,-150.0,9.888e-05,2]
[380139287,1755571831754,-171.55593927,9.888e-05,2]
[380139288,1755571831763,-152.69856673,9.888e-05,2]
[380139289,1755571831773,-150.0,9.888e-05,2]
[380139290,1755571831783,-150.0,9.889e-05,2]
[380139291,1755571831793,-165.98,9.89e-05,2]
[380139292,1755571831803,-798.74,9.89e-05,2]
[380139293,1755571831813,-113.0739546,9.89e-05,2]
[380139302,1755571831932,-149.0060454,9.89e-05,2]
[380139305,1755571831941,-165.98,9.89e-05,2]
[380139306,1755571831950,-468.78,9.89e-05,2]
[380139308,1755571831960,-263.98,9.89e-05,2]
[380139310,1755571831970,-798.74,9.89e-05,2]
[380139312,1755571831979,-468.78,9.89e-05,2]
[380139315,1755571831988,-6900.0,9.9e-05,3]
[380139319,1755571831999,-468.78,9.9e-05,2]
[380139321,1755571832011,-468.78,9.9e-05,2]
[380139325,1755571832021,-2514.71185243,9.918e-05,2]
[380139326,1755571832031,-277.35679052,9.922e-05,2]
[380139327,1755571832043,-500.0,9.923e-05,2]
[380139328,1755571832054,-500.0,9.923e-05,2]
[380139329,1755571832064,-500.0,9.923e-05,2]
[380139330,1755571832075,-500.0,9.923e-05,2]
[380139331,1755571832086,-500.0,9.923e-05,2]
[380139332,1755571832096,-500.0,9.923e-05,2]
[380139333,1755571832107,-500.0,9.923e-05,2]
[380139334,1755571832117,-500.0,9.923e-05,2]
[380139335,1755571832127,-500.0,9.923e-05,2]
[380139336,1755571832135,-500.0,9.923e-05,2]
[380139337,1755571832145,-459.003,9.927e-05,2]
[380139338,1755571832154,-9650.59104419,9.927e-05,2]
[380139339,1755571832164,-347.12,9.927e-05,2]
[380139340,1755571832173,-51287.36237191,9.928e-05,2]
[380139341,1755571832183,-798.74,9.93e-05,2]
[380139342,1755571832193,-150.0,9.93e-05,2]
[380139343,1755571832202,-539.18,9.93e-05,2]
[380139344,1755571832211,-150.0,9.93e-05,2]
[380139345,1755571832221,-165.98,9.93e-05,2]
[380139346,1755571832232,-408.27,9.93e-05,2]
[380139347,1755571832242,-539.18,9.93e-05,2]
[380139348,1755571832252,-468.78,9.93e-05,2]
[380139349,1755571832261,-798.74,9.93e-05,2]
[380139350,1755571832272,-150.0,9.93e-05,2]
[380139351,1755571832281,-408.27,9.93e-05,2]
[380139352,1755571832291,-205.15820154,9.93e-05,2]
[380139353,1755571832299,-500.0,9.932e-05,2]
[380139354,1755571832309,-174.16656994,9.94e-05,2]
[380139355,1755571832318,-300.0,9.942e-05,2]
[380139356,1755571832328,-160.0,9.942e-05,2]
[380139357,1755571832338,-721.12765535,9.942e-05,2]
[380139358,1755571832347,-151.0,9.942e-05,2]
[380139359,1755571832356,-1047.21,9.947e-05,2]
[380139360,1755571832365,-166810.71200272,9.948e-05,2]
[380139364,1755571837527,-4254.68585677,9.948e-05,2]
[380139365,1755571837540,-400.0,9.948e-05,2]
[380139366,1755571837600,-349.38153342,9.948e-05,2]
[380139541,1755571839470,-732.18335078,9.948e-05,2]
[380139549,1755571839529,-4674.16657081,9.948e-05,2]
[380139551,1755571839628,-1083.81940273,9.948e-05,2]
[380139552,1755571839640,-371.48587076,9.948e-05,2]
[380139559,1755571839768,-1096.82772758,9.948e-05,2]
[380139848,1755571842648,-17825.5,9.948e-05,2]
[380140289,1755571846979,-1134.71515,9.948e-05,2]
[380141819,1755571964815,772.43,0.00021917,120]
[380141820,1755571965386,772.43,0.00021917,120]
[380141821,1755571965628,772.43,0.00021917,120]
[380141822,1755571966443,772.43,0.00021917,120]
[380141823,1755571966600,772.43,0.00021917,120]
[380141824,1755571966879,772.43,0.00021917,120]
[380141825,1755571967015,772.43,0.00021917,120]
[380141826,1755571967176,772.43,0.00021917,120]
[380141827,1755571967409,772.43,0.00021917,120]
[380141828,1755571967569,772.43,0.00021917,120]
[380141829,1755571967882,772.43,0.00021917,120]
[380141830,1755571968023,772.43,0.00021917,120]
[380141831,1755571969558,772.43,0.00021917,120]
[380141832,1755571969848,772.43,0.00021917,120]
[380141833,1755571969985,772.43,0.00021917,120]
[380141834,1755571970234,772.43,0.00021917,120]
[380141835,1755571970408,772.43,0.00021917,120]
[380141836,1755571971113,772.43,0.00021917,120]
[380141837,1755571971231,772.43,0.00021917,120]
[380141838,1755571971381,772.43,0.00021917,120]
[380141839,1755571971536,772.43,0.00021917,120]
[380141840,1755571971741,772.43,0.00021917,120]
[380141841,1755571971863,772.43,0.00021917,120]
[380141842,1755571971989,772.54244173,0.00021917,120]
[380141843,1755571981085,168.37,9.344e-05,2]
[380141844,1755571997843,192.35,9.071e-05,2]
[380141846,1755572147804,1000.0,6e-07,120]
[380141847,1755572155827,1000.0,6e-07,120]
[380141848,1755572156267,150.0,9e-05,2]
[380141850,1755572164589,1000.0,6e-07,120]
[380141851,1755572171077,1000.0,6e-07,120]
[380141852,1755572179859,1000.0,6e-07,120]
[380141853,1755572188459,1000.0,6e-07,120]
[380141854,1755572197157,1000.0,6e-07,120]
[380141855,1755572204564,1000.0,6e-07,120]
[380141856,1755572212004,1000.0,6e-07,120]
[380141857,1755572219370,1000.0,6e-07,120]
[380141858,1755572227018,1000.0,6e-07,120]
[380141859,1755572234765,1000.0,6e-07,120]
[380141860,1755572238855,2790.0,0.00012,21]
[380141861,1755572242955,1000.0,6e-07,120]
[380141862,1755572251239,1000.0,6e-07,120]
[380141863,1755572258966,1000.0,6e-07,120]
[380141864,1755572268114,446.0,6e-07,120]
[380141865,1755572477171,1000.0,6e-07,120]
[380141941,1755572488417,1000.0,6e-07,120]
[380141942,1755572500738,1000.0,6e-07,120]
[380141943,1755572508780,1000.0,6e-07,120]
[380141944,1755572518870,1000.0,6e-07,120]
[380141945,1755572525833,1487.03,9.114e-05,2]
[380141946,1755572567087,1000.0,6e-07,120]
[380141947,1755572575134,1000.0,6e-07,120]
[380141948,1755572580991,475.36,9.037e-05,2]
[380141949,1755572582990,1000.0,6e-07,120]
[380141950,1755572590005,1000.0,6e-07,120]
[380141951,1755572594520,452.13,9.048e-05,2]
[380141952,1755572597865,1000.0,6e-07,120]
[380141954,1755572607449,1000.0,6e-07,120]
[380141955,1755572615611,1000.0,6e-07,120]
[380141956,1755572624287,1000.0,6e-07,120]
[380141957,1755572635560,548.0,6e-07,120]
[380141958,1755572668459,407.29,9.035e-05,2]
[380141959,1755572668615,407.29,9.04e-05,2]
[380141960,1755572668708,407.29,9.045e-05,2]
[380141961,1755572669148,407.29,9.049e-05,2]
[380141962,1755572669243,407.29,9.054e-05,2]
[380141963,1755572669426,407.29,9.059e-05,2]
[380141964,1755572670032,407.29,9.064e-05,2]
[380141965,1755572670108,407.29,9.068e-05,2]
[380141966,1755572670220,407.29,9.073e-05,2]
[380141967,1755572670342,407.29,9.078e-05,2]
[380141968,1755572670454,407.29,9.083e-05,2]
[380141969,1755572670671,407.29,9.087e-05,2]
[380141970,1755572670968,407.29,9.092e-05,2]
[380141971,1755572671171,407.29,9.097e-05,2]
[380141972,1755572671570,407.29,9.102e-05,2]
[380141973,1755572671724,407.29,9.106e-05,2]
[380141974,1755572671818,407.29,9.111e-05,2]
[380141975,1755572671918,407.29,9.116e-05,2]
[380141976,1755572672126,407.29,9.121e-05,2]
[380141977,1755572672321,407.29,9.126e-05,2]
[380141978,1755572690734,150.0,8e-05,2]
[380141979,1755572691246,150.0,9.18e-05,2]
[380141980,1755572746680,1000.0,9.067e-05,2]
[380141983,1755572761527,2100.0,0.000221,120]
[380142109,1755572850930,10982.45,9.029e-05,2]
[380142113,1755572985994,300.0,0.00013,10]
[380142114,1755573028741,300.0,0.00013,10]
[380142119,1755573031705,-769.772277,9.576e-05,2]
[380142120,1755573032001,-447.8546,9.624e-05,2]
[380142121,1755573032091,-2000.0,9.674e-05,2]
[380142122,1755573032101,-150.0,9.724e-05,2]
[380142123,1755573032110,-250.0,9.724e-05,2]
[380142124,1755573032120,-150.0,9.773e-05,2]
[380142125,1755573032130,-1200.0,9.822e-05,2]
[380142126,1755573032139,-168.23774886,9.823e-05,2]
[380142127,1755573032149,-3200.0,9.823e-05,2]
[380142128,1755573032158,-170.0,9.836e-05,7]
[380142129,1755573032168,-468.71,9.84e-05,2]
[380142130,1755573032178,-468.71,9.84e-05,2]
[380142131,1755573032187,-300.0,9.847e-05,2]
[380142132,1755573032197,-1172.07534378,9.848e-05,2]
[380142133,1755573032208,-240.16555622,9.848e-05,2]
[380142134,1755573032217,-5000.0,9.848e-05,2]
[380142135,1755573032227,-34205.48905361,9.848e-05,2]
[380142136,1755573032238,-4299.24,9.848e-05,2]
[380142137,1755573032263,-54899.99648317,9.848e-05,2]
[380142138,1755573032274,-8934.7684581,9.848e-05,2]
[380142139,1755573034968,-255.86642593,9.847e-05,2]
[380142140,1755573034979,-213.18757328,9.847e-05,2]
[380142141,1755573034991,-195.26321261,9.847e-05,2]
[380142142,1755573035002,-3842.5956562,9.848e-05,2]
[380142173,1755573037581,-1074.87473879,9.848e-05,2]
[380142174,1755573037687,-72054.97051013,9.848e-05,2]
[380142175,1755573037697,-1000.0,9.848e-05,2]
[380142176,1755573037706,-696.74,9.85e-05,2]
[380142177,1755573037716,-943.86,9.85e-05,2]
[380142178,1755573037725,-464.44212381,9.866e-05,2]
[380142179,1755573037735,-468.71,9.87e-05,2]
[380142180,1755573037744,-468.71,9.87e-05,2]
[380142181,1755573037753,-468.71,9.87e-05,2]
[380142182,1755573037762,-1088.0,9.9e-05,2]
[380142183,1755573037771,-2900.0,9.9e-05,3]
[380142184,1755573037781,-468.71,9.9e-05,2]
[380142185,1755573037790,-259.0,9.907e-05,2]
[380142186,1755573037799,-277.35679052,9.917e-05,2]
[380142187,1755573037809,-10228.58713246,9.918e-05,2]
[380142440,1755573040382,-470.84350855,9.908e-05,2]
[380142695,1755573042925,-11582.0,9.908e-05,2]
[380142968,1755573045545,-816.77263007,9.624e-05,2]
[380142970,1755573045554,-53828.43841235,9.908e-05,2]
[380142972,1755573045564,-7536.77105835,9.918e-05,2]
[380142974,1755573045573,-150.0,9.922e-05,2]
[380142976,1755573045583,-501.4426945,9.923e-05,2]
[380142978,1755573045594,-169.21869839,9.923e-05,2]
[380142980,1755573045603,-500.88088009,9.923e-05,2]
[380142982,1755573045614,-501.3418395,9.923e-05,2]
[380142984,1755573045623,-500.0,9.923e-05,2]
[380142986,1755573045632,-500.0,9.923e-05,2]
[380142988,1755573045641,-159.40298882,9.923e-05,2]
[380142990,1755573045651,-500.0,9.923e-05,2]
[380142992,1755573045661,-500.0,9.923e-05,2]
[380142994,1755573045671,-500.0,9.923e-05,2]
[380142996,1755573045681,-504.85021779,9.923e-05,2]
[380142998,1755573045691,-500.0,9.923e-05,2]
[380143000,1755573045700,-500.57324707,9.923e-05,2]
[380143002,1755573045709,-371.05727308,9.923e-05,2]
[380143004,1755573045718,-500.0,9.923e-05,2]
[380143006,1755573045727,-500.0,9.923e-05,2]
[380143008,1755573045737,-150.0,9.94e-05,2]
[380143010,1755573045746,-1385.04,9.94e-05,2]
[380143012,1755573045755,-408.27,9.94e-05,2]
[380143014,1755573045764,-150.0,9.94e-05,2]
[380143016,1755573045774,-288.6942408,9.94e-05,2]
[380143018,1755573045784,-7039.034186,9.941e-05,2]
[380143020,1755573045793,-6417.6722472,9.941e-05,2]
[380143022,1755573045802,-160.0,9.942e-05,2]
[380143024,1755573045812,-721.12765535,9.942e-05,2]
[380143026,1755573045821,-300.0,9.942e-05,2]
[380143028,1755573045831,-151.0,9.942e-05,2]
[380143030,1755573045840,-1000.0,9.947e-05,2]
[380143032,1755573045850,-367.203,9.947e-05,2]
[380143034,1755573045860,-1071.31496947,9.947e-05,3]
[380143036,1755573045870,-1071.31496947,9.947e-05,3]
[380143038,1755573045879,-1028.73,9.947e-05,2]
[380143040,1755573045889,-51266.52253443,9.948e-05,2]
[380143041,1755573045899,-1517.81355813,9.948e-05,2]
[380143042,1755573045908,-1039.0,9.948e-05,2]
[380143043,1755573045917,-2000.0,9.948e-05,2]
[380143044,1755573045927,-2127.89,9.948e-05,3]
[380143045,1755573045937,-151.0,9.948e-05,2]
[380143046,1755573045946,-151.0,9.948e-05,2]
[380143047,1755573045955,-153.530648,9.948e-05,2]
[380143048,1755573045964,-151.0,9.948e-05,2]
[380143049,1755573045974,-163.954578,9.948e-05,2]
[380143051,1755573045984,-176.230577,9.948e-05,2]
[380143053,1755573045994,-151.0,9.948e-05,2]
[380143055,1755573046003,-151.0,9.948e-05,2]
[380143057,1755573046013,-170.154624,9.948e-05,2]
[380143059,1755573046022,-151.0,9.948e-05,2]
[380143061,1755573046032,-151.0,9.948e-05,2]
[380143063,1755573046042,-153.397002,9.948e-05,2]
[380143065,1755573046052,-151.0,9.948e-05,2]
[380143067,1755573046061,-151.071889,9.948e-05,2]
[380143070,1755573046071,-151.226035,9.948e-05,2]
[380143072,1755573046080,-1261.115791,9.948e-05,2]
[380143074,1755573046089,-1261.115791,9.948e-05,2]
[380143076,1755573046099,-1261.115791,9.948e-05,2]
[380143078,1755573046108,-1261.115791,9.948e-05,2]
[380143080,1755573046117,-1261.115791,9.948e-05,2]
[380143082,1755573046127,-1261.115791,9.948e-05,2]
[380143084,1755573046136,-1261.115791,9.948e-05,2]
[380143085,1755573046144,-1261.115791,9.948e-05,2]
[380143087,1755573046154,-1261.115791,9.948e-05,2]
[380143089,1755573046163,-1261.115791,9.948e-05,2]
[380143092,1755573046173,-1261.115791,9.948e-05,2]
[380143094,1755573046182,-1261.115791,9.948e-05,2]
[380143096,1755573046192,-1261.115791,9.948e-05,2]
[380143098,1755573046202,-1261.115791,9.948e-05,2]
[380143100,1755573046212,-150.0,9.948e-05,2]
[380143102,1755573046223,-1261.115791,9.948e-05,2]
[380143104,1755573046232,-1261.115791,9.948e-05,2]
[380143106,1755573046242,-1261.115791,9.948e-05,2]
[380143108,1755573046252,-1261.115791,9.948e-05,2]
[380143110,1755573046261,-1261.115791,9.948e-05,2]
[380143112,1755573046270,-186.886799,9.948e-05,2]
[380143114,1755573046280,-1261.115795,9.948e-05,2]
[380143116,1755573046290,-151.078425,9.948e-05,2]
[380143118,1755573046299,-500.0,9.948e-05,2]
[380143120,1755573046308,-151.0,9.948e-05,2]
[380143122,1755573046318,-151.0,9.948e-05,2]
[380143124,1755573046328,-151.0,9.948e-05,2]
[380143126,1755573046337,-151.0,9.948e-05,2]
[380143128,1755573046346,-151.0,9.948e-05,2]
[380143130,1755573046355,-151.0,9.948e-05,2]
[380143132,1755573046367,-151.0,9.948e-05,2]
[380143134,1755573046383,-237.230272,9.948e-05,2]
[380143136,1755573046393,-180.773983,9.948e-05,2]
[380143138,1755573046402,-180.773983,9.948e-05,2]
[380143140,1755573046414,-180.773983,9.948e-05,2]
[380143142,1755573046423,-180.773983,9.948e-05,2]
[380143144,1755573046433,-180.773983,9.948e-05,2]
[380143146,1755573046443,-180.773983,9.948e-05,2]
[380143148,1755573046454,-180.773983,9.948e-05,2]
[380143150,1755573046465,-180.773983,9.948e-05,2]
[380143152,1755573046475,-180.773983,9.948e-05,2]
[380143154,1755573046484,-180.773983,9.948e-05,2]
[380143156,1755573046494,-180.773983,9.948e-05,2]
[380143158,1755573046503,-180.773983,9.948e-05,2]
[380143160,1755573046512,-180.773983,9.948e-05,2]
[380143162,1755573046521,-180.773983,9.948e-05,2]
[380143164,1755573046532,-180.773983,9.948e-05,2]
[380143166,1755573046541,-180.773983,9.948e-05,2]
[380143168,1755573046550,-180.773983,9.948e-05,2]
[380143170,1755573046559,-180.773983,9.948e-05,2]
[380143172,1755573046568,-180.773983,9.948e-05,2]
[380143174,1755573046577,-180.773989,9.948e-05,2]
[380143176,1755573046585,-151.0,9.948e-05,2]
[380143178,1755573046595,-151.0,9.948e-05,2]
[380143180,1755573046604,-191.14579,9.948e-05,2]
[380143182,1755573046613,-151.305923,9.948e-05,2]
[380143184,1755573046622,-191.14579,9.948e-05,2]
[380143186,1755573046631,-191.14579,9.948e-05,2]
[380143188,1755573046641,-191.14579,9.948e-05,2]
[380143190,1755573046651,-191.14579,9.948e-05,2]
[380143192,1755573046660,-191.14579,9.948e-05,2]
[380143194,1755573046669,-191.14579,9.948e-05,2]
[380143196,1755573046686,-1171.944362,9.948e-05,2]
[380143198,1755573046696,-191.14579,9.948e-05,2]
[380143200,1755573046706,-1171.944362,9.948e-05,2]
[380143202,1755573046717,-1171.944362,9.948e-05,2]
[380143204,1755573046726,-1171.944362,9.948e-05,2]
[380143206,1755573046736,-191.14579,9.948e-05,2]
[380143208,1755573046745,-1171.944362,9.948e-05,2]
[380143210,1755573046756,-191.14579,9.948e-05,2]
[380143212,1755573046765,-1171.944362,9.948e-05,2]
[380143214,1755573046775,-191.14579,9.948e-05,2]
[380143216,1755573046785,-1171.944362,9.948e-05,2]
[380143218,1755573046794,-191.14579,9.948e-05,2]
[380143220,1755573046804,-1171.944362,9.948e-05,2]
[380143222,1755573046815,-191.14579,9.948e-05,2]
[380143224,1755573046824,-1171.944362,9.948e-05,2]
[380143226,1755573046834,-191.14579,9.948e-05,2]
[380143228,1755573046844,-1171.944362,9.948e-05,2]
[380143230,1755573046854,-191.14579,9.948e-05,2]
[380143232,1755573046863,-1171.944362,9.948e-05,2]
[380143234,1755573046872,-191.14579,9.948e-05,2]
[380143236,1755573046881,-1171.944362,9.948e-05,2]
[380143238,1755573046891,-191.14579,9.948e-05,2]
[380143240,1755573046900,-1953.72726,9.948e-05,2]
[380143242,1755573046909,-191.14579,9.948e-05,2]
[380143244,1755573046919,-1171.944362,9.948e-05,2]
[380143246,1755573046929,-1953.72726,9.948e-05,2]
[380143248,1755573046939,-191.14579,9.948e-05,2]
[380143250,1755573046948,-1171.944362,9.948e-05,2]
[380143252,1755573046958,-1953.72726,9.948e-05,2]
[380143254,1755573046967,-191.145783,9.948e-05,2]
[380143256,1755573046978,-1171.944362,9.948e-05,2]
[380143258,1755573046987,-1953.72726,9.948e-05,2]
[380143260,1755573046997,-1171.944362,9.948e-05,2]
[380143262,1755573047007,-1953.72726,9.948e-05,2]
[380143264,1755573047015,-1171.944362,9.948e-05,2]
[380143266,1755573047025,-1953.72726,9.948e-05,2]
[380143268,1755573047034,-1171.944362,9.948e-05,2]
[380143270,1755573047043,-1953.72726,9.948e-05,2]
[380143272,1755573047054,-1171.944362,9.948e-05,2]
[380143273,1755573047067,-1953.72726,9.948e-05,2]
[380143276,1755573047076,-1171.944352,9.948e-05,2]
[380143277,1755573047086,-1953.72726,9.948e-05,2]
[380143280,1755573047095,-1953.72726,9.948e-05,2]
[380143282,1755573047104,-1953.72726,9.948e-05,2]
[380143283,1755573047117,-1953.72726,9.948e-05,2]
[380143285,1755573047137,-1953.72726,9.948e-05,2]
[380143288,1755573047149,-1953.72726,9.948e-05,2]
[380143290,1755573047158,-1953.72726,9.948e-05,2]
[380143291,1755573047167,-1953.72726,9.948e-05,2]
[380143293,1755573047176,-1953.72726,9.948e-05,2]
[380143295,1755573047185,-1953.72726,9.948e-05,2]
[380143298,1755573047196,-1953.72726,9.948e-05,2]
[380143300,1755573047205,-1953.72726,9.948e-05,2]
[380143302,1755573047215,-228.233093,9.948e-05,2]
[380143304,1755573047224,-228.233093,9.948e-05,2]
[380143306,1755573047233,-228.233093,9.948e-05,2]
[380143308,1755573047242,-184.509352,9.948e-05,2]
[380143310,1755573047252,-228.233093,9.948e-05,2]
[380143312,1755573047261,-228.233093,9.948e-05,2]
[380143314,1755573047270,-228.233093,9.948e-05,2]
[380143316,1755573047279,-228.233093,9.948e-05,2]
[380143318,1755573047288,-228.233093,9.948e-05,2]
[380143320,1755573047298,-228.233093,9.948e-05,2]
[380143322,1755573047307,-228.233093,9.948e-05,2]
[380143323,1755573047316,-228.233093,9.948e-05,2]
[380143326,1755573047326,-228.233093,9.948e-05,2]
[380143328,1755573047335,-228.233093,9.948e-05,2]
[380143330,1755573047344,-228.233093,9.948e-05,2]
[380143332,1755573047353,-228.233093,9.948e-05,2]
[380143334,1755573047363,-228.233093,9.948e-05,2]
[380143335,1755573047373,-228.233093,9.948e-05,2]
[380143337,1755573047383,-228.233093,9.948e-05,2]
[380143339,1755573047391,-228.233093,9.948e-05,2]
[380143341,1755573047401,-228.233102,9.948e-05,2]
[380143343,1755573047410,-213.704843,9.948e-05,2]
[380143345,1755573047421,-501.463284,9.948e-05,2]
[380143347,1755573047430,-501.463284,9.948e-05,2]
[380143349,1755573047440,-501.463284,9.948e-05,2]
[380143351,1755573047451,-501.463284,9.948e-05,2]
[380143353,1755573047460,-501.463284,9.948e-05,2]
[380143355,1755573047470,-501.463284,9.948e-05,2]
[380143357,1755573047479,-501.463284,9.948e-05,2]
[380143359,1755573047488,-501.463284,9.948e-05,2]
[380143361,1755573047497,-501.463284,9.948e-05,2]
[380143363,1755573047507,-501.463284,9.948e-05,2]
[380143365,1755573047516,-501.463284,9.948e-05,2]
[380143367,1755573047526,-501.463284,9.948e-05,2]
[380143369,1755573047535,-501.463284,9.948e-05,2]
[380143371,1755573047545,-501.463284,9.948e-05,2]
[380143373,1755573047554,-501.463284,9.948e-05,2]
[380143375,1755573047563,-501.463284,9.948e-05,2]
[380143377,1755573047573,-501.463284,9.948e-05,2]
[380143379,1755573047582,-501.463284,9.948e-05,2]
[380143381,1755573047591,-501.463284,9.948e-05,2]
[380143383,1755573047600,-501.463275,9.948e-05,2]
[380143385,1755573047610,-151.0,9.948e-05,2]
[380143387,1755573047619,-151.0,9.948e-05,2]
[380143389,1755573047628,-178.531507,9.948e-05,2]
[380143391,1755573047637,-2102.353886,9.948e-05,2]
[380143393,1755573047647,-1016.559654,9.948e-05,2]
[380143395,1755573047656,-2102.353886,9.948e-05,2]
[380143397,1755573047666,-1016.559654,9.948e-05,2]
[380143399,1755573047678,-2102.353886,9.948e-05,2]
[380143401,1755573047687,-1016.559654,9.948e-05,2]
[380143402,1755573047697,-2102.353886,9.948e-05,2]
[380143403,1755573047706,-1016.559654,9.948e-05,2]
[380143404,1755573047715,-2102.353886,9.948e-05,2]
[380143405,1755573047724,-1016.559654,9.948e-05,2]
[380143406,1755573047734,-2102.353886,9.948e-05,2]